bitfinex/quotes_ETHUSD_20220212
["timestamp","ask_amount","ask_price","bid_price","bid_amount"]
[1644681042873,0.00994567,2884.2,2884.1,1.15196399]
[1644681043275,0.00825999,2884.9,2884.1,0.5]
[1644681043474,0.00825999,2884.9,2884.2,0.00209309]
[1644681043476,0.00994558,2884.3,2884.2,0.00209309]
[1644681043674,0.00994558,2884.3,2883.9,0.51150721]
[1644681044277,0.00994558,2884.3,2884.0,0.6721991]
[1644681044575,0.00825999,2884.9,2884.0,0.6721991]
[1644681044776,0.00994563,2884.2,2884.1,0.17539309]
[1644681044975,0.00994563,2884.2,2884.0,1.8123991]
[1644681045624,0.00825999,2884.9,2884.0,1.8123991]
[1644681045924,0.00994563,2884.2,2884.1,0.002705]
[1644681046125,1.00861562,2885.4,2884.1,3.3]
[1644681046325,0.62847031,2885.3,2884.1,3.302705]
[1644681046525,0.1733,2885.2,2884.2,0.002705]
[1644681046725,0.62847031,2885.1,2884.2,0.002705]
[1644681046927,0.1733,2885.0,2884.2,0.002705]
[1644681047126,0.62847031,2884.9,2884.2,0.002705]
[1644681047529,0.62847031,2884.8,2884.2,0.002705]
[1644681047732,0.62847031,2884.7,2884.2,0.002705]
[1644681047928,1.04053,2885.1,2884.2,0.002705]
[1644681048131,0.629224,2885.0,2884.2,0.002705]
[1644681048327,0.00712177,2884.6,2884.2,0.002705]
[1644681049169,0.86723,2885.1,2884.2,0.002705]
[1644681049370,0.57936843,2885.0,2884.2,0.002705]
[1644681049672,0.87454177,2884.5,2884.2,0.002705]
[1644681049873,0.1733,2884.4,2884.1,0.01968278]
[1644681050176,0.4733,2884.4,2884.1,0.01968278]
[1644681050376,0.9733,2884.4,2884.1,0.01968278]
[1644681050574,0.6733,2884.4,2884.1,0.01968278]
[1644681050777,2.71838548,2884.4,2884.1,0.01968278]
[1644681050975,0.86754,2884.3,2884.0,0.00943866]
[1644681051175,0.1733,2884.2,2884.0,0.00943866]
[1644681051577,0.1733,2884.2,2883.9,0.0201102]
[1644681051875,4.93908039,2884.2,2884.0,0.00943866]
[1644681052074,0.65584889,2884.1,2884.0,0.00943866]
[1644681052274,0.1733,2884.1,2884.0,0.00943866]
[1644681052475,3.92210602,2884.1,2883.5,0.002705]
[1644681052728,0.86754,2884.0,2883.5,0.002705]
[1644681053128,0.86759,2883.9,2883.5,0.002705]
[1644681053330,1.11759,2883.9,2883.5,0.002705]
[1644681054628,0.1733,2883.8,2883.5,0.002705]
[1644681054831,0.1733,2883.8,2883.4,5.363104]
[1644681055536,0.1733,2883.8,2883.5,0.00283209]
[1644681056369,0.1733,2883.8,2883.4,5.363104]
[1644681056769,0.1733,2883.8,2883.5,0.00941653]
[1644681057673,0.1733,2883.8,2883.4,5.363104]
[1644681057868,0.1733,2883.8,2883.5,0.00941653]
[1644681058772,0.1733,2883.8,2883.4,5.363104]
[1644681059173,0.1733,2883.8,2883.5,0.00941653]
[1644681059974,0.1733,2883.8,2883.4,5.363104]
[1644681060242,1.29089,2883.9,2883.5,0.00941653]
[1644681060628,0.4233,2883.9,2883.5,0.00941653]
[1644681060826,0.86754,2884.0,2883.5,0.00941653]
[1644681061028,0.01657032,2883.8,2883.5,0.00941653]
[1644681061230,0.01657032,2883.8,2883.4,5.363104]
[1644681061626,0.01657032,2883.8,2883.6,0.0094162]
[1644681061826,0.88416032,2883.8,2883.6,0.0094162]
[1644681062028,0.01657032,2883.8,2883.6,0.0094162]
[1644681062426,0.01657032,2883.8,2883.4,5.363104]
[1644681062626,0.01657032,2883.8,2883.6,0.00941637]
[1644681063631,0.01657032,2883.8,2883.4,5.363104]
[1644681063868,0.01657032,2883.8,2883.6,0.00941637]
[1644681064668,0.01657032,2883.8,2883.6,0.6823326]
[1644681064869,0.01657032,2883.8,2883.6,0.67291623]
[1644681065070,0.01657032,2883.8,2883.6,0.6823326]
[1644681065275,0.01657032,2883.8,2883.6,0.00941637]
[1644681066074,0.01657032,2883.8,2883.4,5.363104]
[1644681066274,0.01657032,2883.8,2883.6,0.00941637]
[1644681067277,0.01657032,2883.8,2883.5,0.68061109]
[1644681067476,0.01657032,2883.8,2883.6,0.00941637]
[1644681068428,0.01657032,2883.8,2883.4,5.536404]
[1644681068624,0.01657032,2883.8,2883.6,0.00941637]
[1644681068625,0.26657032,2883.8,2883.6,0.00941637]
[1644681069225,0.01657032,2883.8,2883.6,0.00941637]
[1644681069424,0.60225197,2883.7,2883.6,0.00941637]
[1644681069625,0.60225197,2883.7,2883.4,5.363104]
[1644681069829,0.60225197,2883.7,2883.6,0.00941637]
[1644681070731,0.60225197,2883.7,2883.4,5.3658064]
[1644681071138,0.60225197,2883.7,2883.5,0.00941653]
[1644681071139,1.43140086,2883.6,2883.5,0.00941653]
[1644681071575,0.77555197,2883.6,2883.5,0.00941653]
[1644681071774,1.43498709,2883.6,2883.5,0.00941653]
[1644681072072,1.43498709,2883.6,2883.4,5.363104]
[1644681072274,1.26168709,2883.5,2883.4,5.37252086]
[1644681072472,1.43508709,2883.5,2883.4,5.37252086]
[1644681072777,0.77565197,2883.5,2883.4,5.37252086]
[1644681073076,1.43508709,2883.5,2883.4,5.37252086]
[1644681073276,0.77565197,2883.5,2883.4,5.363104]
[1644681073478,1.43508709,2883.5,2883.4,5.363104]
[1644681073677,0.77565197,2883.5,2883.4,5.363104]
[1644681074077,1.43508709,2883.5,2883.4,5.363104]
[1644681074477,0.60225197,2883.5,2883.4,5.363104]
[1644681074677,0.60225197,2883.5,2883.4,3.78794934]
[1644681074880,0.65943512,2883.5,2883.4,3.78794934]
[1644681075129,0.60225197,2883.5,2883.4,3.78794934]
[1644681075823,0.65943512,2883.6,2883.4,3.78794934]
[1644681075824,1.26168709,2883.6,2883.4,3.78794934]
[1644681076028,0.60225197,2883.5,2883.4,3.78794934]
[1644681076227,1.14933008,2883.5,2883.4,3.78794934]
[1644681076426,5.05378666,2883.3,2882.9,0.04037679]
[1644681076624,5.05378666,2883.3,2882.9,0.03767439]
[1644681076625,0.65824614,2883.1,2882.9,0.03767439]
[1644681076825,0.6734,2883.0,2882.9,0.03767439]
[1644681077124,0.6734,2883.0,2882.1,0.0027024]
[1644681077125,0.86788,2882.9,2882.1,0.0027024]
[1644681077325,1.10225197,2882.8,2882.1,0.83121276]
[1644681077526,0.60225197,2882.7,2882.2,0.0027024]
[1644681078425,0.60225197,2882.7,2882.3,0.00232739]
[1644681079269,0.60225197,2882.7,2882.1,0.82834592]
[1644681079470,0.60225197,2882.7,2882.4,0.0077343]
[1644681080473,0.60225197,2882.7,2882.1,0.0027024]
[1644681080676,0.60225197,2882.7,2882.4,0.00773416]
[1644681081076,0.86799,2882.6,2882.4,0.00773416]
[1644681081279,0.86799,2882.6,2882.0,0.03094129]
[1644681081280,2.0,2882.4,2882.0,0.03094129]
[1644681081476,1.72031197,2882.3,2882.0,0.03094129]
[1644681081775,0.60225197,2882.2,2881.9,0.0027024]
[1644681081975,0.60225197,2882.2,2881.9,0.80859997]
[1644681082175,1.11806,2882.3,2881.9,0.0027024]
[1644681082377,2.89067669,2882.2,2881.9,0.0027024]
[1644681082637,2.23623,2882.2,2881.9,0.0027024]
[1644681082823,1.3681,2882.2,2881.6,0.81027264]
[1644681083024,1.3681,2882.2,2881.7,0.0027024]
[1644681083225,0.65432084,2882.1,2881.7,0.0027024]
[1644681083624,1.3681,2882.2,2881.7,0.0027024]
[1644681083827,0.1734,2882.1,2881.7,0.0027024]
[1644681084025,0.65425604,2882.0,2881.7,0.0027024]
[1644681084224,0.1734,2882.1,2881.7,0.0027024]
[1644681084425,1.36816,2881.9,2881.7,0.0027024]
[1644681084625,1.36816,2881.9,2881.5,0.0027024]
[1644681084626,0.65418255,2881.8,2881.5,0.0027024]
[1644681084825,0.65418255,2881.8,2881.4,2.36322283]
[1644681085124,0.65418255,2881.8,2881.2,0.0027024]
[1644681085125,3.3,2881.7,2881.2,0.0027024]
[1644681085329,2.02254255,2881.6,2881.2,0.0027024]
[1644681085629,0.86854,2881.4,2881.2,0.0027024]
[1644681085827,0.86854,2881.4,2881.1,2.36322283]
[1644681085828,0.6734,2881.3,2881.1,2.36322283]
[1644681086028,0.5,2881.3,2881.1,2.36322283]
[1644681086229,0.8,2881.3,2881.1,2.36322283]
[1644681086474,0.8,2881.3,2880.9,0.0027024]
[1644681086475,2.59302787,2881.2,2880.9,0.0027024]
[1644681086670,2.59302787,2881.2,2880.4,0.0027024]
[1644681086671,2.05143787,2881.1,2880.4,0.0027024]
[1644681086871,2.2,2880.9,2880.2,2.22083105]
[1644681087070,0.86873,2880.7,2880.3,0.00270456]
[1644681087272,0.86873,2880.7,2880.2,2.22083105]
[1644681087273,0.5,2880.6,2880.2,2.22083105]
[1644681087472,0.6734,2880.6,2880.2,2.22083105]
[1644681087671,3.27982,2880.6,2879.8,0.00270456]
[1644681087872,3.27982,2880.6,2879.4,0.00270456]
[1644681088171,3.10642,2880.6,2879.4,0.17610456]
[1644681088371,3.35642,2880.6,2879.4,0.17610456]
[1644681088775,3.65642,2880.6,2879.4,0.17610456]
[1644681088975,0.86867,2880.3,2879.4,0.17610456]
[1644681089174,0.86869,2880.2,2879.5,0.72585597]
[1644681089374,0.86869,2880.2,2879.6,0.00270456]
[1644681089973,0.86869,2880.2,2879.7,0.60240099]
[1644681090225,0.86869,2880.2,2879.8,0.0093624]
[1644681091324,0.86857,2880.5,2879.8,0.51083132]
[1644681091527,1.36857,2880.5,2879.9,0.00270456]
[1644681091726,1.36857,2880.5,2879.9,0.01206664]
[1644681092327,1.13810625,2880.6,2880.0,0.67293718]
[1644681092328,0.01953625,2880.6,2880.0,0.67293718]
[1644681092528,0.01953625,2880.6,2880.1,0.00270456]
[1644681092727,0.01953625,2880.6,2880.1,1.40120456]
[1644681092928,0.01953625,2880.6,2880.2,0.67293718]
[1644681093129,0.01953625,2880.6,2880.3,0.1734]
[1644681093328,0.01953625,2880.6,2880.4,0.61256908]
[1644681094183,0.01953625,2880.6,2880.4,0.62192953]
[1644681094581,3.625e-05,2880.6,2880.5,0.67301603]
[1644681094781,1.73661,2881.7,2880.5,0.67301603]
[1644681094782,1.04159,2881.8,2881.3,0.0008]
[1644681094981,0.86812,2882.4,2881.3,0.0008]
[1644681094982,0.1734,2882.2,2881.3,0.0008]
[1644681095186,0.00938228,2882.2,2881.3,0.0008]
[1644681095984,0.00938228,2882.2,2881.7,0.51588752]
[1644681096183,0.5,2882.4,2881.7,0.51588752]
[1644681096384,0.00930884,2882.2,2881.7,0.51588752]
[1644681096586,0.00930884,2882.2,2881.8,0.00270463]
[1644681096786,0.00930884,2882.2,2881.7,0.51588752]
[1644681097389,0.1734,2882.6,2881.7,0.51588752]
[1644681097630,0.00930929,2882.2,2881.8,0.00270463]
[1644681097920,0.00930929,2882.2,2881.7,0.51588752]
[1644681098521,0.1734,2882.6,2881.7,0.51588752]
[1644681098721,0.00930929,2882.2,2881.8,0.00270463]
[1644681098922,0.00930929,2882.2,2881.7,0.51588752]
[1644681099721,0.1734,2882.4,2881.9,5.0]
[1644681099921,4.95737666,2883.3,2882.1,5.0]
[1644681099922,0.00931426,2882.2,2882.1,5.0]
[1644681100123,1.426e-05,2882.2,2882.1,5.0]
[1644681100324,1.426e-05,2882.2,2882.1,1.1734]
[1644681100528,1.426e-05,2882.2,2882.1,0.1734]
[1644681100725,1.426e-05,2882.2,2881.9,0.1734]
[1644681100926,0.8096778,2883.2,2881.9,0.17610305]
[1644681101129,0.8096778,2883.2,2881.9,0.00270305]
[1644681101372,2.35378666,2883.3,2882.6,0.52415763]
[1644681101572,2.35378666,2883.3,2881.8,0.26983007]
[1644681101573,0.86781,2883.1,2881.8,0.26983007]
[1644681101771,5.9877328,2883.0,2881.8,0.01983007]
[1644681101974,1.48292581,2882.9,2881.8,0.01983007]
[1644681102171,4.60077084,2882.8,2881.8,0.01983007]
[1644681102372,0.98292581,2882.7,2881.8,0.01983007]
[1644681102572,0.1734,2882.7,2882.1,0.50327457]
[1644681102771,1.03664338,2882.7,2882.1,0.50327457]
[1644681102971,1.03664338,2882.7,2882.2,0.00269961]
[1644681103172,0.86324338,2882.7,2882.2,0.00269961]
[1644681103573,0.0099503,2882.6,2882.2,0.00269961]
[1644681103770,0.0099503,2882.6,2881.8,0.01983007]
[1644681103771,0.1833503,2882.6,2881.8,0.02252968]
[1644681104575,0.1734,2882.6,2881.8,0.02252968]
[1644681104777,0.00995055,2882.3,2881.8,0.02252968]
[1644681104974,0.86809,2882.2,2881.8,0.02252968]
[1644681106023,0.18335005,2882.3,2881.8,0.02252968]
[1644681106225,0.18335005,2882.3,2881.8,0.01983007]
[1644681106623,0.5,2882.2,2881.8,0.01983007]
[1644681107023,1.3681,2882.2,2881.8,0.01983007]
[1644681108625,0.5,2882.2,2881.8,0.01983007]
[1644681110271,0.5,2882.2,2881.8,0.5509823]
[1644681111274,0.00994537,2882.3,2881.8,0.5509823]
[1644681111474,0.00994537,2882.3,2881.9,0.00269961]
[1644681111675,3.5,2883.1,2881.9,0.17609961]
[1644681111873,0.83934564,2883.0,2881.9,0.17609961]
[1644681112075,0.00994549,2882.3,2881.9,5.17609961]
[1644681112276,0.00994549,2882.3,2882.0,1.0]
[1644681112478,0.00994549,2882.3,2882.1,0.1734]
[1644681112922,3.5,2883.2,2882.1,0.1734]
[1644681113124,0.00994586,2882.3,2882.1,0.1734]
[1644681114127,3.5,2883.2,2882.1,0.1734]
[1644681114327,0.84080303,2883.1,2882.3,0.63641017]
[1644681114529,0.84080303,2883.0,2882.3,0.63641017]
[1644681114728,0.84080303,2882.9,2882.3,0.63641017]
[1644681114928,0.84080303,2882.8,2882.3,0.63641017]
[1644681115133,6.44912107,2883.3,2882.3,0.63641017]
[1644681115428,0.84100367,2883.2,2882.3,0.63641017]
[1644681115631,0.00959195,2882.7,2882.3,0.63641017]
[1644681115831,0.00959195,2882.7,2882.4,0.1734]
[1644681116229,0.00959195,2882.7,2882.4,1.1734]
[1644681116471,0.1734,2883.1,2882.4,0.1734]
[1644681116675,0.84210347,2883.0,2882.4,0.1734]
[1644681117076,0.1734,2883.1,2882.4,0.1734]
[1644681117879,0.1734,2883.1,2882.4,5.1734]
[1644681118081,0.1734,2883.1,2882.7,5.0]
[1644681118279,0.1734,2883.1,2882.8,1.1734]
[1644681118479,0.1734,2883.1,2882.9,0.63582762]
[1644681119279,0.18333761,2883.1,2882.9,0.63582762]
[1644681120134,0.1734,2883.1,2882.9,0.63582762]
[1644681120537,0.18333761,2883.1,2882.9,0.63582762]
[1644681121335,2.35378666,2883.3,2882.9,0.63582762]
[1644681121738,0.00993761,2883.1,2882.9,0.63582762]
[1644681122537,2.35378666,2883.3,2882.5,0.02629995]
[1644681122746,0.00976212,2883.1,2882.5,0.02629995]
[1644681122945,0.5,2883.0,2882.5,0.02629995]
[1644681123972,0.00908189,2882.9,2882.5,0.02629995]
[1644681124473,0.5,2882.8,2882.5,0.02629995]
[1644681124674,0.5,2882.8,2881.9,0.17609961]
[1644681124675,3.86929906,2882.7,2881.9,0.17609961]
[1644681124873,0.6734,2882.6,2881.9,0.17609961]
[1644681125178,0.6734,2882.6,2881.9,0.1734]
[1644681125377,3.63433098,2882.5,2881.9,0.1734]
[1644681125582,0.6734,2882.4,2881.7,0.00877838]
[1644681126180,0.6734,2882.4,2881.6,0.00269961]
[1644681126381,0.0087752,2882.3,2881.7,0.00775529]
[1644681126780,0.0087752,2882.3,2882.1,0.60972739]
[1644681127382,0.5,2882.6,2882.1,0.60972739]
[1644681127622,0.00877553,2882.3,2882.1,0.60972739]
[1644681128227,0.00877553,2882.3,2881.8,0.00269961]
[1644681128623,0.5,2882.6,2881.8,0.00269961]
[1644681128823,0.00884986,2882.3,2881.8,0.00269961]
[1644681129428,0.00884986,2882.3,2882.1,0.69487716]
[1644681129927,0.5,2882.6,2882.1,0.69487716]
[1644681130129,0.00889508,2882.3,2882.1,0.69487716]
[1644681130330,0.00889508,2882.3,2881.8,0.00269961]
[1644681131032,0.51973596,2882.6,2881.8,0.00269961]
[1644681131033,0.5,2882.4,2881.8,0.00269961]
[1644681131231,0.5,2882.4,2881.7,0.00790491]
[1644681131232,0.18229474,2882.3,2881.7,0.00790491]
[1644681131679,0.18229474,2882.3,2881.7,0.01060452]
[1644681132278,0.1734,2882.3,2881.7,0.00269961]
[1644681132479,0.18228574,2882.3,2881.7,0.01060452]
[1644681132679,0.86813,2882.2,2881.7,0.01060452]
[1644681132882,0.86826,2882.0,2881.7,0.01060452]
[1644681133180,4.35998498,2881.9,2881.7,0.00790491]
[1644681133383,4.35998498,2881.9,2881.3,0.0008]
[1644681133384,3.57286564,2881.8,2881.3,0.0008]
[1644681133579,0.6734,2881.7,2881.3,0.0008]
[1644681133780,0.6734,2881.7,2881.4,0.61776909]
[1644681134581,0.6734,2881.7,2881.3,0.0008]
[1644681134781,0.6734,2881.7,2881.4,0.00787595]
[1644681135229,0.6234,2881.7,2881.4,0.00787595]
[1644681135829,0.6234,2881.7,2881.4,0.59560686]
[1644681136034,0.6234,2881.7,2881.4,0.60348281]
[1644681137033,0.91021937,2881.6,2881.4,0.59560686]
[1644681137232,0.91021937,2881.6,2881.4,0.60348821]
[1644681137434,1.15331844,2882.2,2881.5,0.55688663]
[1644681137435,0.5,2882.2,2881.5,0.55688663]
[1644681137633,0.91025896,2882.1,2881.5,0.55958624]
[1644681137832,0.91025896,2882.1,2881.6,0.00269961]
[1644681138035,0.91025896,2882.0,2881.6,0.00269961]
[1644681138232,0.89659589,2882.3,2881.6,0.00269961]
[1644681138233,0.91025896,2881.9,2881.6,0.00269961]
[1644681138431,0.91025896,2881.8,2881.6,0.00269961]
[1644681138636,0.91025896,2882.2,2881.7,0.00788053]
[1644681138881,0.91055237,2882.1,2881.7,0.00788053]
[1644681139071,0.89659657,2882.3,2881.4,0.76900686]
[1644681139072,0.91055237,2882.0,2881.4,0.76900686]
[1644681139271,0.89659657,2882.3,2881.4,0.76900686]
[1644681139272,0.91055237,2882.2,2881.5,0.55976451]
[1644681139472,0.91055237,2882.1,2881.6,0.00270843]
[1644681139677,0.91055237,2882.0,2881.6,0.00270843]
[1644681139876,0.91055237,2882.2,2881.6,0.00270843]
[1644681140078,0.91055237,2882.1,2881.6,0.00270843]
[1644681140277,1.54103573,2882.3,2881.6,0.00270843]
[1644681140278,0.91055237,2882.0,2881.6,0.00270843]
[1644681140477,0.91055237,2881.9,2881.6,0.00270843]
[1644681140678,0.91055237,2881.8,2881.6,0.00270843]
[1644681140877,0.88771729,2882.3,2881.9,0.6073645]
[1644681141078,0.91110911,2882.2,2881.9,0.6073645]
[1644681141281,0.01958928,2882.0,2881.9,0.6073645]
[1644681141477,0.93069839,2882.0,2881.9,0.6073645]
[1644681142483,0.93069839,2882.0,2881.9,1.16476952]
[1644681142723,0.93069839,2882.0,2881.9,0.6073645]
[1644681142922,0.93069839,2882.0,2881.6,0.00236992]
[1644681143123,0.91110911,2881.9,2881.3,0.5561553]
[1644681143323,0.91110911,2881.9,2881.6,0.00788001]
[1644681143523,0.91110911,2881.9,2881.7,0.5553553]
[1644681144128,0.91110911,2881.9,2881.7,1.26807865]
[1644681144326,0.91110911,2881.9,2881.8,0.5553553]
[1644681147176,0.91110911,2881.9,2881.7,0.5553553]
[1644681147376,0.91110911,2881.9,2881.8,0.55550551]
[1644681147980,0.91110911,2881.9,2881.4,0.00270843]
[1644681148181,0.91110911,2881.9,2881.6,0.00774794]
[1644681148381,1.08450911,2881.9,2881.6,0.00774794]
[1644681148582,0.91110911,2881.8,2881.6,0.00774794]
[1644681148982,0.91110911,2881.8,2881.3,0.00350843]
[1644681149184,0.91110911,2881.8,2881.3,0.55893775]
[1644681149381,0.91110911,2881.8,2881.6,0.00774794]
[1644681149582,0.91110911,2881.8,2881.7,0.55542932]
[1644681150525,0.91110911,2881.8,2881.6,0.00774794]
[1644681150724,0.91110911,2881.7,2881.6,0.00774794]
[1644681150926,0.91110911,2881.7,2881.6,0.56322331]
[1644681151124,0.01958928,2882.0,2881.6,0.56322331]
[1644681151125,0.91110911,2881.9,2881.6,0.56322331]
[1644681151326,0.91110911,2881.8,2881.7,0.55532738]
[1644681151728,0.91110911,2881.9,2881.7,0.55532738]
[1644681152931,0.91110911,2881.9,2881.8,0.55532738]
[1644681153328,0.91110911,2881.9,2881.7,0.55532738]
[1644681153527,0.91110911,2881.9,2881.8,0.55532738]
[1644681153728,0.91110911,2881.9,2881.6,0.00788031]
[1644681153974,0.91110911,2881.9,2881.7,0.55538426]
[1644681154173,0.91110911,2881.9,2881.6,0.00788031]
[1644681154380,0.91110911,2881.9,2881.7,1.15072882]
[1644681154572,0.91110911,2881.9,2881.8,0.55538426]
[1644681155378,0.91110911,2881.9,2881.7,0.59534456]
[1644681155577,0.91110911,2881.9,2881.8,0.55536118]
[1644681156680,0.91110911,2881.9,2881.8,0.55530823]
[1644681157279,0.65331844,2882.4,2881.8,0.55530823]
[1644681157280,0.66121687,2882.5,2882.1,3.3]
[1644681157481,1.30663688,2883.1,2882.2,9.3]
[1644681157482,0.88162679,2883.1,2882.2,9.3]
[1644681157725,2.35378666,2883.3,2882.3,3.6734]
[1644681157928,2.35378666,2883.3,2882.6,5.0]
[1644681158130,2.35378666,2883.3,2882.7,0.1734]
[1644681158329,2.35378666,2883.3,2882.8,0.66429639]
[1644681158528,2.35378666,2883.3,2882.8,0.83769639]
[1644681159127,0.0071358,2883.2,2882.8,0.83769639]
[1644681159327,0.0071358,2883.2,2882.6,0.73819997]
[1644681159328,0.18410365,2882.7,2882.6,0.73819997]
[1644681159531,0.0071358,2883.2,2882.7,3.3341]
[1644681159728,0.0071358,2883.2,2882.7,3.6341]
[1644681159930,0.0071358,2883.2,2882.7,7.36206848]
[1644681160130,0.88162679,2883.9,2882.8,8.3]
[1644681160336,1.48003688,2884.2,2883.1,3.3]
[1644681160337,0.88162679,2884.1,2883.1,3.3]
[1644681160534,0.88162679,2884.4,2883.2,8.5]
[1644681160732,0.1734,2884.5,2883.2,8.67209129]
[1644681160733,0.88162679,2884.5,2883.2,8.67209129]
[1644681160933,0.88162679,2884.5,2883.2,5.17209129]
[1644681161132,0.88162679,2884.5,2883.3,0.1733]
[1644681161392,0.1733,2884.7,2884.5,0.50622193]
[1644681161585,0.88162679,2884.8,2884.5,0.50622193]
[1644681162783,0.88162679,2884.6,2884.5,0.50622193]
[1644681162983,0.88162679,2884.6,2883.8,0.1733]
[1644681163583,0.88162679,2884.6,2883.7,0.1733]
[1644681163786,0.00712126,2884.3,2883.7,3.74150167]
[1644681164085,0.00712126,2884.3,2884.2,0.53366446]
[1644681164687,0.88162679,2884.7,2884.2,0.53366446]
[1644681165124,0.88162679,2884.7,2883.7,0.4733]
[1644681166129,0.91918427,2884.8,2883.7,0.4733]
[1644681166429,0.03755748,2884.8,2884.5,0.68021545]
[1644681166631,0.03755748,2884.8,2884.5,1.40071545]
[1644681166829,0.03755748,2884.8,2884.5,5.10459585]
[1644681167429,0.03755748,2884.8,2884.5,1.40071545]
[1644681167829,0.03755748,2884.8,2884.5,4.89026679]
[1644681168033,0.03755748,2884.8,2884.5,1.40071545]
[1644681168231,0.03755748,2884.8,2884.6,3.55870732]
[1644681168430,0.03755748,2884.8,2884.5,0.68021545]
[1644681168632,0.04749116,2884.8,2884.5,0.68021545]
[1644681169672,0.03755748,2884.8,2884.5,0.68021545]
[1644681169873,0.04749116,2884.8,2884.5,0.68021545]
[1644681170477,0.04749116,2884.8,2884.5,0.85351545]
[1644681170683,0.66228565,2885.4,2884.7,5.0]
[1644681170881,0.00425901,2885.4,2884.8,3.65725806]
[1644681171078,0.00425901,2885.4,2884.8,0.00575722]
[1644681171478,0.00425901,2885.4,2884.9,0.5]
[1644681171679,0.00425901,2885.4,2885.1,0.50792842]
[1644681172487,0.00425901,2885.4,2885.1,0.80792842]
[1644681172726,0.00425901,2885.4,2885.1,5.80792842]
[1644681172927,0.00425901,2885.8,2885.3,5.0]
[1644681173231,0.00425901,2885.6,2885.4,4.12787667]
[1644681173424,0.03972641,2885.8,2885.4,10.04897667]
[1644681173625,0.03972641,2885.8,2885.4,10.17587667]
[1644681173826,0.03972641,2885.8,2885.4,5.17587667]
[1644681174025,0.65802664,2886.3,2885.6,8.3]
[1644681174226,0.00425901,2886.2,2885.7,3.60652709]
[1644681174427,0.00425901,2886.2,2885.5,0.5994571]
[1644681174628,0.66228565,2886.2,2885.5,0.5994571]
[1644681174828,0.65802664,2886.0,2884.9,0.5]
[1644681175034,4.43077903,2885.9,2884.9,0.1731]
[1644681175231,0.86686,2885.8,2884.9,0.1731]
[1644681175432,0.8669,2885.6,2884.9,0.1731]
[1644681175633,3.55725196,2885.5,2884.9,0.1731]
[1644681175832,5.46437196,2885.5,2884.9,0.1731]
[1644681176032,5.46437196,2885.5,2885.2,0.0288455]
[1644681176033,1.91137901,2885.5,2885.2,0.0288455]
[1644681176232,0.03069543,2885.1,2884.5,3.4372]
[1644681176476,0.1733,2885.0,2883.9,9.5806]
[1644681176674,0.1733,2885.0,2884.0,3.4181]
[1644681176675,0.00425901,2884.9,2884.0,3.4181]
[1644681177074,3.60113732,2884.9,2884.0,3.4181]
[1644681177273,0.81944734,2884.8,2884.0,3.4181]
[1644681177676,0.81944734,2884.8,2884.2,0.61902244]
[1644681177677,0.00425901,2884.7,2884.2,0.61902244]
[1644681177875,0.8194661,2884.6,2884.0,3.4181]
[1644681178077,0.00425901,2884.7,2884.0,3.4181]
[1644681178276,0.81292849,2884.6,2884.3,0.00952418]
[1644681178477,0.86715,2884.8,2884.3,0.00952418]
[1644681178680,0.81719457,2884.7,2884.3,0.00952418]
[1644681178879,0.00425901,2884.9,2884.3,0.00952418]
[1644681179081,0.00425901,2884.7,2884.3,0.00952418]
[1644681179279,0.00425901,2884.9,2884.0,2.84332542]
[1644681179480,0.00425901,2884.7,2884.4,0.00952385]
[1644681179682,0.00425901,2884.9,2884.6,0.55681871]
[1644681179885,0.7831291,2884.8,2884.6,0.55681871]
[1644681180124,0.03495444,2885.1,2884.6,0.55681871]
[1644681180125,0.7831291,2884.7,2884.6,0.55681871]
[1644681180333,0.7831291,2885.0,2884.1,0.1733]
[1644681180528,0.00425901,2884.7,2884.1,0.1733]
[1644681180731,0.00425901,2884.9,2884.6,0.00952319]
[1644681180931,0.78327343,2884.8,2884.6,0.00952319]
[1644681181129,0.03069543,2885.1,2884.6,0.00952319]
[1644681181354,0.78328287,2885.0,2884.6,0.00952319]
[1644681181529,0.78328287,2885.0,2884.5,0.60219952]
[1644681181730,0.00425901,2884.9,2884.5,0.60219952]
[1644681182031,0.03069543,2885.1,2884.7,0.00950694]
[1644681182231,0.00425901,2884.9,2884.7,0.00950694]
[1644681182431,0.03069543,2885.1,2884.7,0.00950694]
[1644681182631,0.78312556,2885.0,2884.7,0.00950694]
[1644681182833,0.78312556,2885.0,2884.5,0.60219952]
[1644681183030,0.78312556,2885.0,2884.8,0.00950678]
[1644681184075,0.78312556,2885.0,2884.5,0.60219952]
[1644681184275,0.78312556,2885.0,2884.8,0.00285993]
[1644681184882,0.73312556,2885.0,2884.8,0.00285993]
[1644681185281,0.73312556,2885.0,2884.0,2.84332542]
[1644681185585,0.00425901,2884.9,2884.8,0.00286465]
[1644681185784,0.05928716,2885.1,2884.8,0.00286465]
[1644681186385,0.05928716,2885.1,2884.7,0.60133197]
[1644681186685,0.05928716,2885.1,2884.8,0.00952236]
[1644681187724,0.05928716,2885.1,2884.7,0.60133197]
[1644681187923,0.92637716,2885.1,2884.8,0.00952236]
[1644681188228,4.46772023,2885.1,2884.8,0.00952236]
[1644681188430,5.12574687,2885.1,2884.8,0.00952236]
[1644681188827,5.12574687,2885.1,2884.2,1.2249]
[1644681189028,5.29904687,2885.1,2884.2,1.2249]
[1644681189228,5.29904687,2885.1,2884.8,0.00952236]
[1644681189430,1.76196281,2885.1,2884.8,0.00952236]
[1644681189831,0.65802664,2885.0,2884.8,0.00952236]
[1644681190031,4.58548956,2885.1,2884.2,1.2249]
[1644681190032,5.2435162,2885.1,2884.2,1.2249]
[1644681190235,0.00425901,2884.9,2884.2,1.2249]
[1644681190434,0.00425901,2884.9,2884.8,0.00952236]
[1644681190634,1.71196281,2885.1,2884.8,0.00952236]
[1644681191034,0.65802664,2885.0,2884.8,0.00952236]
[1644681191234,0.65802664,2885.0,2884.0,2.84332542]
[1644681191472,0.00425901,2884.9,2884.8,0.00952236]
[1644681191673,0.00036252,2884.7,2884.1,0.69015708]
[1644681194082,0.00036252,2884.7,2884.1,0.1733]
[1644681194280,0.00036252,2884.7,2883.8,1.1578]
[1644681194480,0.65802664,2884.5,2883.5,7.1529]
[1644681194680,4.06440578,2884.4,2883.5,7.1529]
[1644681194879,0.65802664,2884.3,2883.5,3.3177]
[1644681195121,0.65802664,2884.3,2883.2,4.9826948]
[1644681195122,3.8726073,2884.2,2883.2,4.9826948]
[1644681195328,4.7400473,2884.2,2883.2,4.9826948]
[1644681195727,1.04074,2884.2,2883.2,4.9826948]
[1644681196327,1.04074,2884.2,2883.6,0.00950267]
[1644681196928,5.25223886,2884.2,2883.6,0.00950267]
[1644681197128,0.65802664,2884.1,2883.6,0.00950267]
[1644681197331,0.86752,2883.7,2883.2,1.8018948]
[1644681197532,0.86752,2883.7,2883.3,0.03801376]